fUSD/lending_fUSD_20250208
["ID","MTS","AMOUNT","RATE_DAILY","PERIOD"]
[352238038,1739013094103,-815.55,0.00011757,2]
[352238039,1739013094113,-1561.4,0.00011757,2]
[352238040,1739013094123,-676.39,0.00011757,2]
[352238041,1739013094133,-933.77,0.00011757,2]
[352238042,1739013094143,-727.83,0.00011757,2]
[352238043,1739013094152,-678.91,0.00011757,2]
[352238044,1739013094162,-500.0,0.00011757,2]
[352238045,1739013094172,-804.99,0.00011757,2]
[352238046,1739013094181,-500.0,0.00011757,2]
[352238047,1739013094192,-1045.63,0.00011757,2]
[352238048,1739013094203,-878.01,0.00011757,2]
[352238049,1739013094213,-874.83,0.00011757,2]
[352238050,1739013094226,-1287.44,0.00011757,2]
[352238051,1739013094236,-1828.17,0.00011757,2]
[352238052,1739013094246,-1372.8,0.00011757,2]
[352238053,1739013094255,-500.0,0.00011757,2]
[352238054,1739013094266,-500.0,0.00011757,2]
[352238055,1739013094275,-1591.32,0.00011757,2]
[352238056,1739013094286,-1277.24,0.00011757,2]
[352238057,1739013094296,-609.5,0.00011757,2]
[352238058,1739013094306,-1105.29,0.00011757,2]
[352238059,1739013094317,-1133.97,0.00011757,2]
[352238060,1739013094327,-2052.84,0.00011757,2]
[352238061,1739013094337,-1506.96,0.00011757,2]
[352238062,1739013094348,-500.0,0.00011757,2]
[352238063,1739013094359,-585.89,0.00011757,2]
[352238064,1739013094372,-2183.67,0.00011757,2]
[352238065,1739013094382,-1881.39,0.00011757,2]
[352238066,1739013094393,-848.49,0.00011779,2]
[352238067,1739013094403,-848.49,0.00011779,2]
[352238068,1739013094415,-848.49,0.00011779,2]
[352238069,1739013094425,-848.49,0.00011779,2]
[352238070,1739013094435,-848.49,0.00011779,2]
[352238071,1739013094446,-848.51516048,0.00011779,2]
[352238072,1739013094456,-1128.21,0.00011779,2]
[352238073,1739013094465,-1128.21,0.00011779,2]
[352238074,1739013094475,-1128.21,0.00011779,2]
[352238075,1739013094485,-1128.21,0.00011779,2]
[352238076,1739013094494,-1128.21,0.00011779,2]
[352238077,1739013094504,-1128.24036852,0.00011779,2]
[352238078,1739013094513,-150.0,0.0001178,2]
[352238079,1739013094523,-150.0,0.0001178,2]
[352238080,1739013094534,-150.0,0.0001178,2]
[352238081,1739013094543,-150.0,0.0001178,2]
[352238082,1739013094553,-150.0,0.0001178,2]
[352238083,1739013094563,-8519.03107639,0.0001178,2]
[352238084,1739013094572,-558.81129573,0.0001178,2]
[352238085,1739013094582,-101664.33383812,0.0001178,2]
[352238086,1739013094592,-4128.91625192,0.0001178,2]
[352238087,1739013094602,-6037.97117837,0.0001178,2]
[352238088,1739013094612,-3500.0,0.0001178,2]
[352238089,1739013094622,-151.0,0.00011813,2]
[352238090,1739013094632,-151.0,0.00011813,2]
[352238091,1739013094641,-151.0,0.00011813,2]
[352238092,1739013094651,-151.0,0.00011813,2]
[352238093,1739013094661,-151.0,0.00011813,2]
[352238094,1739013094670,-151.0,0.00011813,2]
[352238095,1739013094680,-151.0,0.00011813,2]
[352238096,1739013094690,-151.0,0.00011813,2]
[352238097,1739013094700,-151.0,0.00011813,2]
[352238098,1739013094709,-151.0,0.00011813,2]
[352238099,1739013094719,-151.0,0.00011813,2]
[352238100,1739013094729,-151.0,0.00011813,2]
[352238101,1739013094738,-151.0,0.00011813,2]
[352238102,1739013094747,-151.0,0.00011813,2]
[352238103,1739013094757,-151.0,0.00011813,2]
[352238104,1739013094767,-151.0,0.00011813,2]
[352238105,1739013094776,-151.0,0.00011813,2]
[352238106,1739013094786,-151.0,0.00011813,2]
[352238107,1739013094795,-151.0,0.00011813,2]
[352238108,1739013094804,-151.0,0.00011813,2]
[352238109,1739013094814,-151.0,0.00011813,2]
[352238110,1739013094824,-151.0,0.00011813,2]
[352238111,1739013094833,-151.0,0.00011813,2]
[352238112,1739013094843,-151.0,0.00011813,2]
[352238113,1739013094853,-151.0,0.00011813,2]
[352238114,1739013094864,-151.0,0.00011813,2]
[352238115,1739013094874,-151.0,0.00011813,2]
[352238116,1739013094884,-151.0,0.00011813,2]
[352238117,1739013094894,-151.0,0.00011813,2]
[352238118,1739013094903,-151.0,0.00011813,2]
[352238119,1739013094913,-151.0,0.00011813,2]
[352238120,1739013094923,-151.0,0.00011813,2]
[352238121,1739013094932,-151.0,0.00011813,2]
[352238122,1739013094941,-151.0,0.00011813,2]
[352238123,1739013094950,-151.0,0.00011813,2]
[352238124,1739013094960,-151.0,0.00011813,2]
[352238125,1739013094969,-151.0,0.00011813,2]
[352238126,1739013094978,-151.0,0.00011813,2]
[352238127,1739013094988,-151.0,0.00011813,2]
[352238128,1739013094997,-151.0,0.00011813,2]
[352238129,1739013095014,-151.0,0.00011813,2]
[352238130,1739013095030,-151.0,0.00011813,2]
[352238131,1739013095050,-151.0,0.00011813,2]
[352238132,1739013095069,-151.0,0.00011813,2]
[352238133,1739013095084,-151.0,0.00011813,2]
[352238134,1739013095101,-151.0,0.00011813,2]
[352238135,1739013095118,-151.0,0.00011813,2]
[352238136,1739013095136,-151.0,0.00011813,2]
[352238137,1739013095155,-151.0,0.00011813,2]
[352238138,1739013095171,-151.0,0.00011813,2]
[352238139,1739013095188,-151.0,0.00011813,2]
[352238140,1739013095203,-151.0,0.00011813,2]
[352238141,1739013095220,-151.0,0.00011813,2]
[352238142,1739013095237,-151.0,0.00011813,2]
[352238143,1739013095252,-151.0,0.00011813,2]
[352238144,1739013095268,-151.0,0.00011813,2]
[352238145,1739013095284,-151.0,0.00011813,2]
[352238146,1739013095299,-151.0,0.00011813,2]
[352238147,1739013095314,-151.0,0.00011813,2]
[352238148,1739013095329,-151.0,0.00011813,2]
[352238149,1739013095345,-151.0,0.00011813,2]
[352238150,1739013095363,-151.0,0.00011813,2]
[352238151,1739013095378,-151.0,0.00011813,2]
[352238152,1739013095393,-151.0,0.00011813,2]
[352238153,1739013095406,-151.0,0.00011813,2]
[352238154,1739013095422,-151.0,0.00011813,2]
[352238155,1739013095437,-151.0,0.00011813,2]
[352238156,1739013095452,-151.0,0.00011813,2]
[352238157,1739013095467,-151.0,0.00011813,2]
[352238158,1739013095482,-151.0,0.00011813,2]
[352238159,1739013095497,-151.0,0.00011813,2]
[352238160,1739013095511,-151.0,0.00011813,2]
[352238161,1739013095526,-151.0,0.00011813,2]
[352238162,1739013095541,-151.0,0.00011813,2]
[352238163,1739013095555,-151.0,0.00011813,2]
[352238164,1739013095570,-151.0,0.00011813,2]
[352238165,1739013095585,-151.0,0.00011813,2]
[352238166,1739013095601,-151.0,0.00011813,2]
[352238167,1739013095615,-151.0,0.00011813,2]
[352238168,1739013095630,-151.0,0.00011813,2]
[352238169,1739013095644,-151.0,0.00011813,2]
[352238170,1739013095659,-251.0025,0.00011813,2]
[352238171,1739013095674,-2624.82,0.00011817,2]
[352238172,1739013095689,-2311.14,0.00011817,2]
[352238173,1739013095704,-1530.98,0.00011817,2]
[352238174,1739013095719,-2112.49,0.00011817,2]
[352238175,1739013095736,-5023.57,0.00011817,2]
[352238176,1739013095750,-4357.4,0.00011817,2]
[352238177,1739013095765,-500.0,0.00011817,2]
[352238178,1739013095780,-3534.9,0.00011817,2]
[352238179,1739013095796,-3593.71,0.00011817,2]
[352238180,1739013095810,-1030.68,0.00011817,2]
[352238181,1739013095824,-1465.28,0.00011817,2]
[352238182,1739013095840,-2712.71,0.00011817,2]
[352238183,1739013095855,-3901.85,0.00011817,2]
[352238184,1739013095870,-5908.12,0.00011817,2]
[352238185,1739013095885,-5342.84,0.00011817,2]
[352238186,1739013095899,-2391.85,0.00011817,2]
[352238187,1739013095915,-2076.57,0.00011817,2]
[352238188,1739013095930,-500.0,0.00011817,2]
[352238189,1739013095945,-5698.13,0.00011817,2]
[352238190,1739013095961,-2309.9,0.00011817,2]
[352238191,1739013095975,-2212.02,0.00011817,2]
[352238192,1739013095990,-500.0,0.00011817,2]
[352238193,1739013096004,-755.52,0.00011817,2]
[352238194,1739013096019,-1450.19,0.00011817,2]
[352238195,1739013096035,-755.35,0.00011817,2]
[352238196,1739013096049,-1681.08,0.00011817,2]
[352238197,1739013096064,-1214.99,0.00011817,2]
[352238198,1739013096079,-500.0,0.00011817,2]
[352238199,1739013096093,-623.04,0.00011817,2]
[352238200,1739013096107,-2156.18,0.00011817,2]
[352238201,1739013096122,-5375.13,0.00011817,2]
[352238202,1739013096136,-155.827945,0.00011817,2]
[352238203,1739013096152,-1130.4,0.00011817,2]
[352238204,1739013096167,-2448.76,0.00011817,2]
[352238205,1739013096182,-500.0,0.00011817,2]
[352238206,1739013096196,-1595.13,0.00011817,2]
[352238207,1739013096210,-500.0,0.00011818,2]
[352238208,1739013096230,-500.0,0.00011818,2]
[352238209,1739013096245,-647.25,0.00011818,2]
[352238210,1739013096259,-500.0,0.00011818,2]
[352238211,1739013096273,-500.0,0.00011818,2]
[352238212,1739013096288,-500.0,0.00011818,2]
[352238213,1739013096302,-510.2,0.00011818,2]
[352238214,1739013096317,-500.0,0.00011818,2]
[352238215,1739013096331,-500.0,0.00011818,2]
[352238216,1739013096345,-500.0,0.00011818,2]
[352238217,1739013096363,-500.0,0.00011818,2]
[352238218,1739013096377,-2124.11,0.00011818,2]
[352238219,1739013096392,-5893.56,0.00011818,2]
[352238220,1739013096408,-3358.801698,0.00011818,2]
[352238221,1739013096422,-1726.29,0.00011818,2]
[352238222,1739013096437,-2160.36,0.00011818,2]
[352238223,1739013096451,-576.21,0.00011818,2]
[352238224,1739013096466,-1327.73,0.00011818,2]
[352238225,1739013096481,-3645.58,0.00011818,2]
[352238226,1739013096495,-3378.237504,0.00011818,2]
[352238227,1739013096510,-152.091761,0.00011818,2]
[352238228,1739013096525,-774.41,0.00011818,2]
[352238229,1739013096539,-2948.09,0.00011818,2]
[352238230,1739013096553,-2267.8,0.00011818,2]
[352238231,1739013096568,-1001.04,0.00011818,2]
[352238232,1739013096582,-500.0,0.00011818,2]
[352238233,1739013096596,-1847.11,0.00011818,2]
[352238234,1739013096611,-500.0,0.00011818,2]
[352238235,1739013096625,-1735.24,0.00011818,2]
[352238236,1739013096640,-1678.32,0.00011818,2]
[352238237,1739013096654,-3512.39,0.00011818,2]
[352238238,1739013096669,-3805.67,0.00011818,2]
[352238239,1739013096683,-2607.62,0.00011818,2]
[352238240,1739013096699,-3258.61,0.00011818,2]
[352238241,1739013096713,-4739.99,0.00011818,2]
[352238242,1739013096728,-12222.98,0.00011818,2]
[352238243,1739013096744,-3871.33,0.00011818,2]
[352238244,1739013096759,-5557.03,0.00011818,2]
[352238245,1739013096773,-500.0,0.00011818,2]
[352238246,1739013097013,-500.0,0.00011818,2]
[352238247,1739013097023,-8192.71,0.00011818,2]
[352238248,1739013097032,-2796.47,0.00011818,2]
[352238249,1739013097044,-538.39,0.00011818,2]
[352238250,1739013097054,-555.96,0.00011818,2]
[352238251,1739013097063,-1656.22,0.00011818,2]
[352238252,1739013097073,-5463.22,0.00011818,2]
[352238253,1739013097083,-4249.23,0.00011818,2]
[352238254,1739013097092,-4928.16,0.00011818,2]
[352238255,1739013097102,-500.0,0.00011818,2]
[352238256,1739013097112,-500.0,0.00011818,2]
[352238257,1739013097121,-500.0,0.00011818,2]
[352238258,1739013097131,-500.0,0.00011819,2]
[352238259,1739013097140,-500.0,0.00011819,2]
[352238260,1739013097149,-787.27,0.00011819,2]
[352238261,1739013097159,-502.49464332,0.00011819,2]
[352238262,1739013097168,-500.0,0.00011819,2]
[352238263,1739013097177,-500.0,0.00011819,2]
[352238264,1739013097186,-517.87,0.00011819,2]
[352238265,1739013097195,-500.0,0.00011819,2]
[352238266,1739013097204,-500.0,0.00011819,2]
[352238267,1739013097213,-500.0,0.00011819,2]
[352238268,1739013097223,-500.0,0.00011819,2]
[352238269,1739013097232,-500.0,0.00011819,2]
[352238270,1739013097241,-661.99,0.00011819,2]
[352238271,1739013097250,-500.0,0.00011819,2]
[352238272,1739013097259,-821.02,0.00011819,2]
[352238273,1739013097269,-500.0,0.00011819,2]
[352238274,1739013097278,-1772.05,0.00011819,2]
[352238275,1739013097287,-500.0,0.00011819,2]
[352238276,1739013097297,-500.0,0.00011819,2]
[352238277,1739013097306,-500.0,0.00011819,2]
[352238278,1739013097315,-964.41,0.00011819,2]
[352238279,1739013097324,-896.8,0.00011819,2]
[352238280,1739013097334,-500.0,0.00011819,2]
[352238281,1739013097343,-2054.77,0.00011819,2]
[352238282,1739013097352,-500.0,0.00011819,2]
[352238283,1739013097364,-512.2612641,0.00011819,2]
[352238284,1739013097373,-500.0,0.00011819,2]
[352238285,1739013097383,-500.0,0.00011819,2]
[352238286,1739013097391,-1316.88,0.00011819,2]
[352238287,1739013097402,-500.0,0.00011819,2]
[352238288,1739013097411,-500.0,0.00011819,2]
[352238289,1739013097420,-500.0,0.00011819,2]
[352238290,1739013097429,-2052.96,0.00011819,2]
[352238291,1739013097438,-500.0,0.00011819,2]
[352238292,1739013097448,-500.0,0.00011819,2]
[352238293,1739013097458,-500.0,0.00011819,2]
[352238294,1739013097467,-500.0,0.00011819,2]
[352238295,1739013097477,-500.0,0.00011819,2]
[352238296,1739013097487,-811.38,0.00011819,2]
[352238297,1739013097496,-1019.72,0.00011819,2]
[352238298,1739013097506,-500.0,0.00011819,2]
[352238299,1739013097516,-500.0,0.00011819,2]
[352238300,1739013097526,-705.84,0.00011819,2]
[352238301,1739013097536,-500.0,0.00011819,2]
[352238302,1739013097545,-2537.39,0.00011819,2]
[352238303,1739013097555,-500.0,0.00011819,2]
[352238304,1739013097565,-716.34,0.00011819,2]
[352238305,1739013097574,-500.0,0.00011819,2]
[352238306,1739013097583,-510.88666813,0.00011819,2]
[352238307,1739013097593,-500.0,0.00011819,2]
[352238308,1739013097602,-936.48,0.00011819,2]
[352238309,1739013097611,-1011.69,0.00011819,2]
[352238310,1739013097620,-500.0,0.00011819,2]
[352238311,1739013097630,-500.0,0.00011819,2]
[352238312,1739013097639,-874.09,0.00011819,2]
[352238313,1739013097648,-726.83,0.00011819,2]
[352238314,1739013097657,-500.0,0.00011819,2]
[352238315,1739013097667,-500.0,0.00011819,2]
[352238316,1739013097676,-500.0,0.00011819,2]
[352238317,1739013097686,-500.0,0.00011819,2]
[352238318,1739013097695,-500.0,0.00011819,2]
[352238319,1739013097704,-1536.23,0.00011819,2]
[352238320,1739013097714,-500.0,0.00011819,2]
[352238321,1739013097723,-500.0,0.00011819,2]
[352238322,1739013097732,-773.18,0.00011819,2]
[352238323,1739013097741,-500.0,0.00011819,2]
[352238324,1739013097751,-611.63,0.00011819,2]
[352238325,1739013097760,-532.87,0.00011819,2]
[352238326,1739013097769,-500.0,0.00011819,2]
[352238327,1739013097778,-708.91,0.00011819,2]
[352238328,1739013097789,-500.0,0.00011819,2]
[352238329,1739013097799,-2071.14,0.00011819,2]
[352238330,1739013097808,-500.0,0.00011819,2]
[352238331,1739013097817,-500.0,0.00011819,2]
[352238332,1739013097827,-818.79,0.00011819,2]
[352238333,1739013097836,-500.0,0.00011819,2]
[352238334,1739013097845,-981.65,0.00011819,2]
[352238335,1739013097854,-500.0,0.00011819,2]
[352238336,1739013097863,-500.0,0.00011819,2]
[352238337,1739013097872,-500.0,0.00011819,2]
[352238338,1739013097880,-947.55,0.00011819,2]
[352238339,1739013097889,-500.0,0.00011819,2]
[352238340,1739013097898,-2250.99,0.00011819,2]
[352238341,1739013097907,-500.0,0.00011819,2]
[352238342,1739013097917,-500.0,0.00011819,2]
[352238343,1739013097926,-500.0,0.00011819,2]
[352238344,1739013097934,-500.0,0.00011819,2]
[352238345,1739013097943,-500.0,0.00011819,2]
[352238346,1739013097952,-500.0,0.00011819,2]
[352238347,1739013097961,-500.0,0.00011819,2]
[352238348,1739013097970,-500.0,0.00011819,2]
[352238349,1739013097979,-500.0,0.00011819,2]
[352238350,1739013097988,-500.0,0.00011819,2]
[352238351,1739013097997,-500.0,0.00011819,2]
[352238352,1739013098006,-500.0,0.00011819,2]
[352238353,1739013098015,-500.0,0.00011819,2]
[352238354,1739013098024,-559.06,0.00011819,2]
[352238355,1739013098033,-514.45,0.00011819,2]
[352238356,1739013098043,-500.0,0.00011819,2]
[352238357,1739013098052,-500.0,0.00011819,2]
[352238358,1739013098062,-854.4,0.00011819,2]
[352238359,1739013098071,-504.00701414,0.00011819,2]
[352238360,1739013098080,-500.0,0.00011819,2]
[352238361,1739013098090,-500.0,0.00011819,2]
[352238362,1739013098099,-513.19,0.00011819,2]
[352238363,1739013098108,-1032.34,0.00011819,2]
[352238364,1739013098118,-500.0,0.00011819,2]
[352238365,1739013098127,-500.0,0.00011819,2]
[352238366,1739013098137,-500.0,0.00011819,2]
[352238367,1739013098146,-500.0,0.00011819,2]
[352238368,1739013098156,-633.03756203,0.00011819,2]
[352238369,1739013098166,-500.0,0.00011819,2]
[352238370,1739013098175,-500.0,0.00011819,2]
[352238371,1739013098184,-1046.28,0.00011819,2]
[352238372,1739013098194,-2383.11,0.00011819,2]
[352238373,1739013098204,-626.31,0.00011819,2]
[352238374,1739013098214,-500.0,0.00011819,2]
[352238375,1739013098223,-614.14,0.00011819,2]
[352238376,1739013098233,-966.17,0.00011819,2]
[352238377,1739013098242,-500.0,0.00011819,2]
[352238378,1739013098251,-1038.87,0.00011819,2]
[352238379,1739013098262,-500.0,0.00011819,2]
[352238380,1739013098271,-500.0,0.00011819,2]
[352238381,1739013098280,-1106.05,0.00011819,2]
[352238382,1739013098290,-500.0,0.00011819,2]
[352238383,1739013098299,-2015.73,0.00011819,2]
[352238384,1739013098309,-500.0,0.00011819,2]
[352238385,1739013098318,-500.0,0.00011819,2]
[352238386,1739013098328,-506.46704134,0.00011819,2]
[352238387,1739013098337,-1931.33,0.00011819,2]
[352238388,1739013098347,-500.0,0.00011819,2]
[352238389,1739013098359,-500.0,0.00011819,2]
[352238390,1739013098368,-500.0,0.00011819,2]
[352238391,1739013098378,-559.49,0.00011819,2]
[352238392,1739013098387,-500.0,0.00011819,2]
[352238393,1739013098398,-500.0,0.00011819,2]
[352238394,1739013098407,-500.0,0.00011819,2]
[352238395,1739013098416,-500.0,0.00011819,2]
[352238396,1739013098427,-1077.31,0.00011819,2]
[352238397,1739013098438,-313.66221095,0.00011819,2]
[352238398,1739013098448,-500.0,0.00011819,2]
[352238399,1739013098457,-500.0,0.00011819,2]
[352238400,1739013098467,-932.69,0.00011819,2]
[352238401,1739013098476,-2072.47,0.00011819,2]
[352238402,1739013098486,-2541.69,0.00011819,2]
[352238403,1739013098495,-501.92,0.00011819,2]
[352238404,1739013098504,-500.0,0.00011819,2]
[352238405,1739013098514,-291.06445602,0.00011819,2]
[352238406,1739013098523,-721.58,0.00011819,2]
[352238407,1739013098533,-761.18,0.00011819,2]
[352238408,1739013098543,-500.0,0.00011819,2]
[352238409,1739013098553,-500.0,0.00011819,2]
[352238410,1739013098562,-500.0,0.00011819,2]
[352238411,1739013098571,-1724.83,0.00011819,2]
[352238412,1739013098580,-500.0,0.00011819,2]
[352238413,1739013098590,-2030.46,0.00011819,2]
[352238414,1739013098599,-500.0,0.00011819,2]
[352238415,1739013098608,-902.21,0.00011819,2]
[352238416,1739013098618,-500.0,0.00011819,2]
[352238417,1739013098627,-2002.7,0.00011819,2]
[352238418,1739013098637,-2636.15,0.00011819,2]
[352238419,1739013098646,-500.0,0.00011819,2]
[352238420,1739013098656,-705.09,0.00011819,2]
[352238421,1739013098666,-500.0,0.00011819,2]
[352238422,1739013098676,-500.0,0.00011819,2]
[352238423,1739013098685,-2090.85,0.00011819,2]
[352238424,1739013098695,-1600.49,0.00011819,2]
[352238425,1739013098706,-1065.95,0.00011819,2]
[352238426,1739013098714,-2402.98,0.00011819,2]
[352238427,1739013098724,-2859.61,0.00011819,2]
[352238428,1739013098734,-500.0,0.00011819,2]
[352238429,1739013098743,-500.0,0.00011819,2]
[352238430,1739013098753,-500.0,0.00011819,2]
[352238431,1739013098765,-500.0,0.00011819,2]
[352238432,1739013098776,-2754.41,0.00011819,2]
[352238433,1739013098785,-879.4,0.00011819,2]
[352238434,1739013098795,-2692.97,0.00011819,2]
[352238435,1739013098804,-3004.1,0.00011819,2]
[352238436,1739013098813,-5148.76,0.00011819,2]
[352238437,1739013098823,-500.0,0.00011819,2]
[352238438,1739013098832,-1559.38,0.00011819,2]
[352238439,1739013098841,-500.0,0.00011819,2]
[352238440,1739013098850,-500.0,0.00011819,2]
[352238441,1739013098860,-500.0,0.00011819,2]
[352238442,1739013098869,-2843.08,0.00011819,2]
[352238443,1739013098879,-1375.24,0.00011819,2]
[352238444,1739013098890,-2268.82,0.00011819,2]
[352238445,1739013098898,-5022.25,0.00011819,2]
[352238446,1739013098910,-272.19433629,0.00011819,2]
[352238447,1739013098919,-711.21,0.00011819,2]
[352238448,1739013098930,-500.0,0.00011819,2]
[352238449,1739013098940,-1670.67,0.00011819,2]
[352238450,1739013098950,-500.0,0.00011819,2]
[352238451,1739013098959,-1399.36,0.00011819,2]
[352238452,1739013098968,-15081.68,0.00011819,2]
[352238453,1739013098979,-1387.07,0.00011819,2]
[352238454,1739013098989,-500.0,0.00011819,2]
[352238455,1739013099001,-6334.51,0.00011819,2]
[352238456,1739013099011,-567.59,0.00011819,2]
[352238457,1739013099021,-500.0,0.00011819,2]
[352238458,1739013099032,-545.26,0.00011819,2]
[352238459,1739013099041,-500.0,0.00011819,2]
[352238460,1739013099051,-2225.81,0.00011819,2]
[352238461,1739013099060,-3509.06,0.00011819,2]
[352238462,1739013099071,-2285.19,0.00011819,2]
[352238463,1739013099083,-5176.3,0.00011819,2]
[352238464,1739013099093,-500.0,0.00011819,2]
[352238465,1739013099104,-679.18,0.00011819,2]
[352238466,1739013099116,-500.0,0.00011819,2]
[352238467,1739013099129,-2222.63,0.00011819,2]
[352238468,1739013099142,-500.0,0.00011819,2]
[352238469,1739013099152,-1424.54,0.00011819,2]
[352238470,1739013099163,-1080.31,0.00011819,2]
[352238471,1739013099175,-500.0,0.00011819,2]
[352238472,1739013099185,-500.0,0.00011819,2]
[352238473,1739013099196,-3915.69,0.00011819,2]
[352238474,1739013099205,-1682.01,0.00011819,2]
[352238475,1739013099214,-500.0,0.00011819,2]
[352238476,1739013099223,-2047.9,0.00011819,2]
[352238477,1739013099232,-1485.93,0.00011819,2]
[352238478,1739013099242,-6299.13,0.00011819,2]
[352238479,1739013099250,-500.0,0.00011819,2]
[352238480,1739013099260,-3481.83,0.00011819,2]
[352238481,1739013099269,-500.0,0.00011819,2]
[352238482,1739013099278,-4781.03,0.00011819,2]
[352238483,1739013099289,-862.73,0.00011819,2]
[352238484,1739013099299,-502.90108215,0.00011819,2]
[352238485,1739013099309,-883.74,0.00011819,2]
[352238486,1739013099318,-875.14,0.00011819,2]
[352238487,1739013099328,-743.76,0.00011819,2]
[352238488,1739013099337,-769.04,0.00011819,2]
[352238489,1739013099346,-500.0,0.00011819,2]
[352238490,1739013099355,-500.0,0.00011819,2]
[352238491,1739013099368,-1609.57,0.00011819,2]
[352238492,1739013099378,-3900.57,0.00011819,2]
[352238493,1739013099387,-2579.73,0.00011819,2]
[352238494,1739013099397,-3578.24,0.00011819,2]
[352238495,1739013099408,-500.0,0.00011819,2]
[352238496,1739013099417,-2832.35,0.00011819,2]
[352238497,1739013099426,-500.0,0.00011819,2]
[352238498,1739013099435,-255.37,0.00011819,2]
[352238499,1739013099446,-3996.35,0.00011819,2]
[352238500,1739013099456,-813.25,0.00011819,2]
[352238501,1739013099465,-6617.64,0.00011819,2]
[352238502,1739013099474,-4921.37,0.00011819,2]
[352238503,1739013099484,-701.82,0.00011819,2]
[352238504,1739013099493,-2017.92,0.00011819,2]
[352238505,1739013099503,-755.0,0.00011819,2]
[352238506,1739013099513,-974.03,0.00011819,2]
[352238507,1739013099523,-1908.71,0.00011819,2]
[352238508,1739013099533,-500.0,0.00011819,2]
[352238509,1739013099545,-2729.51,0.00011819,2]
[352238510,1739013099556,-500.0,0.00011819,2]
[352238511,1739013099565,-642.67,0.00011819,2]
[352238512,1739013099733,-2356.49,0.00011819,2]
[352238513,1739013099744,-4684.81,0.00011819,2]
[352238514,1739013099753,-948.63,0.00011819,2]
[352238515,1739013099762,-3928.31,0.00011819,2]
[352238516,1739013099771,-500.0,0.00011819,2]
[352238517,1739013099781,-1496.66,0.00011819,2]
[352238518,1739013099793,-500.0,0.00011819,2]
[352238519,1739013099803,-500.0,0.00011819,2]
[352238520,1739013099813,-1961.59,0.00011819,2]
[352238521,1739013099822,-500.0,0.0001182,2]
[352238522,1739013099831,-4538.82,0.0001182,2]
[352238523,1739013099841,-500.0,0.00011821,2]
[352238524,1739013099852,-633.17,0.00011821,2]
[352238525,1739013099862,-500.0,0.00011821,2]
[352238526,1739013099872,-500.0,0.00011821,2]
[352238527,1739013099883,-654.42,0.00011821,2]
[352238528,1739013099892,-500.0,0.00011821,2]
[352238529,1739013099902,-500.0,0.00011821,2]
[352238530,1739013099911,-500.0,0.00011821,2]
[352238531,1739013099921,-914.6,0.00011821,2]
[352238532,1739013099930,-500.0,0.00011821,2]
[352238533,1739013099940,-500.0,0.00011821,2]
[352238534,1739013099949,-296.58413976,0.00011821,2]
[352238535,1739013099958,-500.0,0.00011821,2]
[352238536,1739013099967,-500.0,0.00011821,2]
[352238537,1739013099976,-922.56,0.00011821,2]